fUST/lending_fUST_20250202
["ID","MTS","AMOUNT","RATE_DAILY","PERIOD"]
[351245813,1738472853176,-500.0,0.00017671,2]
[351245814,1738472853201,-500.0,0.00017671,2]
[351245815,1738472853225,-500.0,0.00017671,2]
[351245816,1738472853251,-550.92,0.00017671,2]
[351245817,1738472853275,-500.0,0.00017671,2]
[351245818,1738472853300,-686.33,0.00017671,2]
[351245819,1738472853325,-500.0,0.00017671,2]
[351245820,1738472853347,-419.0,0.000178,7]
[351245821,1738472853369,-151.0,0.00017808,2]
[351245822,1738472853391,-151.0,0.00017808,2]
[351245823,1738472853414,-151.0,0.00017808,2]
[351245824,1738472853437,-509.70000003,0.00017808,2]
[351245825,1738472853460,-151.0,0.00017808,2]
[351245826,1738472853484,-981.72,0.00017808,2]
[351245827,1738472853508,-1748.77,0.00017808,2]
[351245828,1738472853532,-500.0,0.00017808,2]
[351245829,1738472853559,-500.0,0.00017808,2]
[351245830,1738472853582,-500.0,0.00017808,2]
[351245831,1738472853606,-500.0,0.00017808,2]
[351245832,1738472853631,-550.92,0.00017808,2]
[351245833,1738472853656,-500.0,0.00017808,2]
[351245834,1738472853680,-686.33,0.00017808,2]
[351245835,1738472853704,-500.0,0.00017808,2]
[351245836,1738472853726,-154.41,0.00017885,2]
[351245837,1738472853750,-981.72,0.00017945,2]
[351245838,1738472853774,-1748.77,0.00017945,2]
[351245839,1738472853803,-500.0,0.00017945,2]
[351245840,1738472853827,-500.0,0.00017945,2]
[351245841,1738472853855,-500.0,0.00017945,2]
[351245842,1738472853878,-500.0,0.00017945,2]
[351245843,1738472853904,-550.92,0.00017945,2]
[351245844,1738472853929,-452.26652907,0.00017945,2]
[351245845,1738472853955,-686.33,0.00017945,2]
[351245846,1738472853978,-500.0,0.00017945,2]
[351245847,1738472854002,-582.47739232,0.00017973,2]
[351245848,1738472854024,-500.96871249,0.00017973,2]
[351245849,1738472854049,-500.0,0.00017973,2]
[351245850,1738472854072,-208.08,0.00017988,2]
[351245851,1738472854095,-156.69602962,0.00017997,2]
[351245852,1738472854117,-500.0,0.00017997,2]
[351245853,1738472854141,-831.5013786,0.00017998,5]
[351245854,1738472854163,-153041.95698386,0.00017998,7]
[351245857,1738472875073,300.0,0.0002,120]
[351245866,1738473032878,-300.0,0.00016437,2]
[351245867,1738473032888,-500.0,0.00016438,2]
[351245868,1738473032900,-874.39,0.00016438,2]
[351245869,1738473032911,-500.0,0.00016438,2]
[351245870,1738473032922,-318.42209516,0.00016438,2]
[351245871,1738473032937,-500.0,0.00016438,2]
[351245872,1738473032947,-413.56623333,0.00016438,2]
[351245873,1738473032957,-500.0,0.00016438,2]
[351245874,1738473032966,-500.0,0.00016575,2]
[351245875,1738473032976,-874.39,0.00016575,2]
[351245876,1738473032987,-500.0,0.00016575,2]
[351245877,1738473032998,-500.0,0.00016575,2]
[351245878,1738473033007,-500.0,0.00016575,2]
[351245879,1738473033016,-500.0,0.00016712,2]
[351245880,1738473033026,-874.39,0.00016712,2]
[351245881,1738473033036,-500.0,0.00016712,2]
[351245882,1738473033046,-500.0,0.00016712,2]
[351245883,1738473033055,-500.0,0.00016712,2]
[351245884,1738473033065,-500.0,0.00016849,2]
[351245885,1738473033075,-874.39,0.00016849,2]
[351245886,1738473033086,-256.71456532,0.00016849,2]
[351245888,1738473033096,-500.0,0.00016849,2]
[351245891,1738473033106,-500.0,0.00016849,2]
[351245893,1738473033117,-500.0,0.00016986,2]
[351245895,1738473033127,-874.39,0.00016986,2]
[351245897,1738473033137,-500.0,0.00016986,2]
[351245898,1738473033147,-500.0,0.00016986,2]
[351245900,1738473033157,-657.0,0.00017,2]
[351245901,1738473033167,-500.0,0.00017123,2]
[351245902,1738473033177,-874.39,0.00017123,2]
[351245903,1738473033187,-500.0,0.00017123,2]
[351245904,1738473033197,-500.0,0.00017123,2]
[351245905,1738473033207,-500.0,0.0001726,2]
[351245906,1738473033217,-874.39,0.0001726,2]
[351245907,1738473033228,-500.0,0.0001726,2]
[351245908,1738473033238,-500.0,0.0001726,2]
[351245909,1738473033248,-500.0,0.00017397,2]
[351245910,1738473033257,-874.39,0.00017397,2]
[351245911,1738473033268,-500.0,0.00017397,2]
[351245912,1738473033278,-500.0,0.00017397,2]
[351245913,1738473033288,-500.0,0.00017534,2]
[351245914,1738473033297,-874.39,0.00017534,2]
[351245915,1738473033307,-524.28807351,0.00017534,2]
[351245916,1738473033317,-500.0,0.00017534,2]
[351245917,1738473033327,-396.0,0.00017646,2]
[351245918,1738473033337,-500.0,0.00017671,2]
[351245919,1738473033347,-874.39,0.00017671,2]
[351245920,1738473033357,-500.0,0.00017671,2]
[351245921,1738473033366,-172.5,0.00017767,2]
[351245922,1738473033376,-500.0,0.00017808,2]
[351245923,1738473033386,-874.39,0.00017808,2]
[351245924,1738473033397,-500.0,0.00017808,2]
[351245925,1738473033406,-500.0,0.00017945,2]
[351245926,1738473033415,-874.39,0.00017945,2]
[351245927,1738473033425,-500.0,0.00017945,2]
[351245928,1738473033435,-420.0,0.00017963,2]
[351245929,1738473033444,-415.7506893,0.00017998,5]
[351245930,1738473033455,-851537.81132187,0.00017998,7]
[351245979,1738473041068,-380.77554303,0.000179,2]
[351245980,1738473041077,-37056.31301729,0.00017998,7]
[351245981,1738473041463,172.412825,0.00013699,2]
[351246001,1738473044648,-6163.8400024,0.00017998,7]
[351246002,1738473044659,-897.5999998,0.00017998,7]
[351246003,1738473044757,-606.03295981,0.00017998,7]
[351246010,1738473270106,173.1055,0.00013973,2]
[351246015,1738474034164,171.117418,0.00013699,2]
[351246016,1738474046124,-300.0,0.00016029,2]
[351246017,1738474046147,-24900.0,0.0001603,2]
[351246018,1738474046172,-507.93344506,0.00016438,2]
[351246019,1738474046193,-500.0,0.00016438,2]
[351246020,1738474046214,-500.0,0.00016438,2]
[351246021,1738474046237,-500.0,0.00016438,2]
[351246022,1738474046258,-500.0,0.00016438,2]
[351246023,1738474046279,-500.0,0.00016438,2]
[351246024,1738474046300,-500.0,0.00016438,2]
[351246025,1738474046323,-500.0,0.00016438,2]
[351246026,1738474046343,-500.0,0.00016438,2]
[351246027,1738474046365,-516.2567498,0.00016438,2]
[351246028,1738474046387,-500.0,0.00016438,2]
[351246029,1738474046408,-500.0,0.00016438,2]
[351246030,1738474046428,-330.34880029,0.00016438,2]
[351246031,1738474046449,-511.85388783,0.00016438,2]
[351246032,1738474046470,-500.51664669,0.00016438,2]
[351246033,1738474046492,-504.97012763,0.00016438,2]
[351246034,1738474046513,-500.0,0.00016438,2]
[351246035,1738474046535,-583.81,0.00016438,2]
[351246036,1738474046556,-500.0,0.00016438,2]
[351246037,1738474046577,-500.0,0.00016438,2]
[351246038,1738474046599,-503.72287359,0.00016438,2]
[351246039,1738474046620,-500.0,0.00016438,2]
[351246040,1738474046640,-575.7623063,0.00016438,2]
[351246041,1738474046661,-500.0,0.00016438,2]
[351246042,1738474046682,-500.0,0.00016438,2]
[351246043,1738474046704,-500.0,0.00016438,2]
[351246044,1738474046725,-500.0,0.00016438,2]
[351246045,1738474046746,-500.0,0.00016438,2]
[351246046,1738474046768,-503.63709508,0.00016438,2]
[351246047,1738474046789,-552.3293858,0.00016438,2]
[351246048,1738474046811,-500.0,0.00016438,2]
[351246049,1738474046832,-501.43014064,0.00016438,2]
[351246050,1738474046854,-500.0,0.00016438,2]
[351246051,1738474046875,-500.0,0.00016438,2]
[351246052,1738474046897,-502.17910134,0.00016438,2]
[351246053,1738474046918,-500.0,0.00016438,2]
[351246054,1738474046940,-460.11519765,0.00016438,2]
[351246055,1738474046961,-502.04228408,0.00016438,2]
[351246056,1738474046982,-509.21614044,0.00016438,2]
[351246057,1738474047003,-578.47126726,0.00016438,2]
[351246058,1738474047028,-501.47853799,0.00016438,2]
[351246059,1738474047049,-500.0,0.00016438,2]
[351246060,1738474047071,-506.43177258,0.00016438,2]
[351246061,1738474047091,-500.0,0.00016438,2]
[351246062,1738474047113,-501.89898233,0.00016438,2]
[351246063,1738474047135,-500.0,0.00016438,2]
[351246064,1738474047156,-500.0,0.00016438,2]
[351246065,1738474047180,-511.4712404,0.00016438,2]
[351246066,1738474047203,-500.0,0.00016438,2]
[351246067,1738474047225,-508.69528929,0.00016438,2]
[351246068,1738474047251,-503.92136635,0.00016438,2]
[351246069,1738474047274,-500.0,0.00016438,2]
[351246070,1738474047296,-509.21746881,0.00016438,2]
[351246071,1738474047322,-502.17855827,0.00016438,2]
[351246072,1738474047344,-503.66902881,0.00016438,2]
[351246073,1738474047365,-198.22712103,0.00016438,2]
[351246074,1738474047387,-507.36618061,0.00016438,2]
[351246075,1738474047408,-502.73795895,0.00016438,2]
[351246076,1738474047431,-500.0,0.00016438,2]
[351246077,1738474047452,-500.0,0.00016438,2]
[351246078,1738474047473,-209.26499385,0.00016438,2]
[351246079,1738474047496,-500.0,0.00016438,2]
[351246080,1738474047517,-192.76883313,0.00016438,2]
[351246081,1738474047539,-553.04150856,0.00016438,2]
[351246082,1738474047559,-501.20342707,0.00016438,2]
[351246083,1738474047580,-500.0,0.00016438,2]
[351246084,1738474047602,-500.0,0.00016438,2]
[351246085,1738474047623,-505.17,0.00016438,2]
[351246086,1738474047644,-500.0,0.00016438,2]
[351246087,1738474047667,-500.0,0.00016438,2]
[351246088,1738474047689,-500.0,0.00016438,2]
[351246089,1738474047711,-500.0,0.00016438,2]
[351246090,1738474047734,-251.5339451,0.00016438,2]
[351246091,1738474047756,-500.77340113,0.00016438,2]
[351246092,1738474047777,-500.0,0.00016438,2]
[351246093,1738474047799,-500.0,0.00016438,2]
[351246094,1738474047820,-500.0,0.00016438,2]
[351246095,1738474047841,-526.25470159,0.00016438,2]
[351246096,1738474047864,-500.0,0.00016438,2]
[351246097,1738474047886,-500.0,0.00016438,2]
[351246098,1738474047907,-500.0,0.00016438,2]
[351246099,1738474047929,-500.0,0.00016438,2]
[351246100,1738474047952,-500.0,0.00016438,2]
[351246101,1738474047973,-500.0,0.00016438,2]
[351246102,1738474047995,-500.0,0.00016438,2]
[351246103,1738474048016,-506.31426783,0.00016438,2]
[351246104,1738474048038,-500.0,0.00016438,2]
[351246105,1738474048060,-500.0,0.00016438,2]
[351246106,1738474048081,-500.0,0.00016438,2]
[351246107,1738474048105,-500.0,0.00016438,2]
[351246108,1738474048127,-500.0,0.00016438,2]
[351246109,1738474048149,-500.0,0.00016438,2]
[351246110,1738474048171,-609.25893571,0.00016438,2]
[351246111,1738474048193,-500.0,0.00016438,2]
[351246112,1738474048215,-500.0,0.00016438,2]
[351246113,1738474048241,-500.0,0.00016438,2]
[351246114,1738474048263,-501.9360657,0.00016438,2]
[351246115,1738474048288,-500.0,0.00016438,2]
[351246116,1738474048311,-500.0,0.00016438,2]
[351246117,1738474048334,-500.0,0.00016438,2]
[351246118,1738474048357,-500.0,0.00016438,2]
[351246119,1738474048379,-500.0,0.00016438,2]
[351246120,1738474048402,-504.17156201,0.00016438,2]
[351246121,1738474048424,-500.0,0.00016438,2]
[351246122,1738474048448,-500.0,0.00016438,2]
[351246123,1738474048471,-505.23991868,0.00016438,2]
[351246124,1738474048494,-500.0,0.00016438,2]
[351246125,1738474048515,-500.0,0.00016438,2]
[351246126,1738474048538,-500.0,0.00016438,2]
[351246127,1738474048560,-505.00237791,0.00016438,2]
[351246128,1738474048582,-500.0,0.00016438,2]
[351246129,1738474048705,-345.9175706,0.00016438,2]
[351246130,1738474048728,-506.46732929,0.00016438,2]
[351246131,1738474048751,-500.0,0.00016438,2]
[351246132,1738474048773,-500.0,0.00016438,2]
[351246133,1738474048795,-500.0,0.00016438,2]
[351246134,1738474048818,-500.0,0.00016438,2]
[351246135,1738474048840,-503.20274902,0.00016438,2]
[351246136,1738474048862,-60.45980397,0.00016438,2]
[351246141,1738474162170,-236.03389474,0.00016127,2]
[351246144,1738474192131,172.877742,0.00013973,2]
[351246145,1738474226530,200.479,0.00015011,2]
[351246165,1738474232190,-51.04538896,0.00016127,2]
[351246166,1738474232202,-814.83748247,0.00016338,2]
[351246167,1738474232214,-300.0,0.00016437,2]
[351246168,1738474232227,-439.54019603,0.00016438,2]
[351246169,1738474232240,-640.53785926,0.00016438,2]
[351246170,1738474232253,-505.17609359,0.00016438,2]
[351246171,1738474232263,-500.0,0.00016438,2]
[351246172,1738474232274,-500.0,0.00016438,2]
[351246173,1738474232285,-505.12352178,0.00016438,2]
[351246174,1738474232300,-403.26758279,0.00016438,2]
[351246175,1738474232311,-500.0,0.00016438,2]
[351246176,1738474232322,-500.0,0.00016438,2]
[351246177,1738474232334,-505.56433506,0.00016438,2]
[351246178,1738474232344,-502.97137501,0.00016438,2]
[351246179,1738474232354,-500.0,0.00016438,2]
[351246180,1738474232366,-526.19414096,0.00016438,2]
[351246181,1738474232380,-442.85136452,0.00016438,2]
[351246182,1738474232391,-509.80125937,0.00016438,2]
[351246183,1738474232404,-500.76612007,0.00016438,2]
[351246184,1738474232415,-506.18267752,0.00016438,2]
[351246185,1738474232427,-500.0,0.00016438,2]
[351246186,1738474232439,-500.0,0.00016438,2]
[351246187,1738474232453,-500.0,0.00016438,2]
[351246188,1738474232464,-500.0,0.00016438,2]
[351246189,1738474232476,-517.58572474,0.00016438,2]
[351246190,1738474232488,-500.0,0.00016438,2]
[351246191,1738474232499,-500.0,0.00016438,2]
[351246192,1738474232514,-500.0,0.00016438,2]
[351246193,1738474232526,-500.0,0.00016438,2]
[351246194,1738474232537,-526.53405721,0.00016438,2]
[351246195,1738474232548,-500.0,0.00016438,2]
[351246196,1738474232559,-500.0,0.00016438,2]
[351246197,1738474232570,-500.0,0.00016438,2]
[351246198,1738474232581,-500.0,0.00016438,2]
[351246199,1738474232592,-500.0,0.00016438,2]
[351246200,1738474232603,-500.0,0.00016438,2]
[351246201,1738474232614,-500.0,0.00016438,2]
[351246202,1738474232625,-500.0,0.00016438,2]
[351246203,1738474232635,-500.0,0.00016438,2]
[351246204,1738474232647,-503.12473356,0.00016438,2]
[351246205,1738474232658,-500.0,0.00016438,2]
[351246206,1738474232668,-343.54140338,0.00016438,2]
[351246235,1738474237949,-156.45859662,0.00016438,2]
[351246236,1738474237959,-500.0,0.00016438,2]
[351246237,1738474237968,-502.26034101,0.00016438,2]
[351246238,1738474237978,-500.0,0.00016438,2]
[351246239,1738474237988,-104.64538013,0.00016438,2]
[351246240,1738474238001,-395.35461987,0.00016438,2]
[351246241,1738474238011,-501.55225588,0.00016438,2]
[351246242,1738474238022,-500.0,0.00016438,2]
[351246243,1738474238032,-500.0,0.00016438,2]
[351246244,1738474238042,-500.0,0.00016438,2]
[351246245,1738474238052,-422.86188512,0.00016438,2]
[351246246,1738474238062,-500.0,0.00016438,2]
[351246247,1738474238072,-500.0,0.00016438,2]
[351246248,1738474238081,-500.0,0.00016438,2]
[351246249,1738474238091,-500.0,0.00016438,2]
[351246250,1738474238101,-500.0,0.00016438,2]
[351246251,1738474238110,-500.0,0.00016438,2]
[351246252,1738474238120,-500.0,0.00016438,2]
[351246253,1738474238130,-500.0,0.00016438,2]
[351246255,1738474238140,-500.0,0.00016438,2]
[351246257,1738474238150,-500.0,0.00016438,2]
[351246259,1738474238159,-500.0,0.00016438,2]
[351246261,1738474238169,-513.5382037,0.00016438,2]
[351246263,1738474238179,-500.0,0.00016438,2]
[351246265,1738474238188,-500.0,0.00016438,2]
[351246267,1738474238199,-500.0,0.00016438,2]
[351246269,1738474238209,-500.0,0.00016438,2]
[351246271,1738474238219,-500.0,0.00016438,2]
[351246273,1738474238228,-500.0,0.00016438,2]
[351246275,1738474238237,-500.0,0.00016438,2]
[351246277,1738474238245,-500.0,0.00016438,2]
[351246278,1738474238255,-500.0,0.00016438,2]
[351246279,1738474238265,-500.0,0.00016438,2]
[351246280,1738474238276,-500.0,0.00016438,2]
[351246281,1738474238287,-500.0,0.00016438,2]
[351246282,1738474238301,-500.0,0.00016438,2]
[351246283,1738474238311,-500.0,0.00016438,2]
[351246285,1738474238320,-155.55697632,0.00016438,2]
[351246287,1738474238331,-500.0,0.00016438,2]
[351246289,1738474238340,-506.15544636,0.00016438,2]
[351246291,1738474238350,-500.0,0.00016438,2]
[351246293,1738474238359,-500.0,0.00016438,2]
[351246295,1738474238369,-500.0,0.00016438,2]
[351246297,1738474238378,-500.0,0.00016438,2]
[351246299,1738474238388,-500.0,0.00016438,2]
[351246301,1738474238397,-503.79225995,0.00016438,2]
[351246303,1738474238407,-500.0,0.00016438,2]
[351246305,1738474238417,-224.1537651,0.00016438,2]
[351246307,1738474238426,-500.0,0.00016438,2]
[351246309,1738474238435,-500.0,0.00016438,2]
[351246311,1738474238446,-500.0,0.00016438,2]
[351246313,1738474238456,-500.0,0.00016438,2]
[351246315,1738474238466,-500.0,0.00016438,2]
[351246316,1738474238476,-500.0,0.00016438,2]
[351246317,1738474238486,-500.0,0.00016438,2]
[351246318,1738474238495,-500.0,0.00016438,2]
[351246320,1738474238505,-503.73784186,0.00016438,2]
[351246322,1738474238516,-504.06391903,0.00016438,2]
[351246323,1738474238525,-500.0,0.00016438,2]
[351246324,1738474238534,-573.35,0.00016438,2]
[351246325,1738474238543,-500.0,0.00016438,2]
[351246326,1738474238554,-500.0,0.00016438,2]
[351246327,1738474238564,-500.0,0.00016438,2]
[351246328,1738474238574,-500.0,0.00016438,2]
[351246329,1738474238584,-502.52373775,0.00016438,2]
[351246330,1738474238593,-508.96761364,0.00016438,2]
[351246331,1738474238603,-500.0,0.00016438,2]
[351246332,1738474238613,-500.0,0.00016438,2]
[351246333,1738474238623,-500.0,0.00016438,2]
[351246334,1738474238632,-500.0,0.00016438,2]
[351246335,1738474238642,-504.55137725,0.00016438,2]
[351246336,1738474238652,-500.0,0.00016438,2]
[351246337,1738474238661,-500.0,0.00016438,2]
[351246338,1738474238671,-500.0,0.00016438,2]
[351246339,1738474238680,-500.0,0.00016438,2]
[351246340,1738474238690,-505.37883034,0.00016438,2]
[351246341,1738474238700,-500.0,0.00016438,2]
[351246342,1738474238709,-500.0,0.00016438,2]
[351246343,1738474238719,-500.0,0.00016438,2]
[351246344,1738474238728,-500.0,0.00016438,2]
[351246345,1738474238737,-500.0,0.00016438,2]
[351246346,1738474238747,-500.0,0.00016438,2]
[351246347,1738474238756,-161.65,0.00016438,2]
[351246348,1738474238767,-500.0,0.00016438,2]
[351246349,1738474238777,-500.0,0.00016438,2]
[351246350,1738474238786,-500.0,0.00016438,2]
[351246351,1738474238796,-500.0,0.00016438,2]
[351246352,1738474238805,-503.13862755,0.00016438,2]
[351246353,1738474238815,-500.0,0.00016438,2]
[351246354,1738474238824,-500.0,0.00016438,2]
[351246355,1738474238835,-500.0,0.00016438,2]
[351246356,1738474238844,-500.0,0.00016438,2]
[351246357,1738474238854,-500.0,0.00016438,2]
[351246358,1738474238864,-500.0,0.00016438,2]
[351246359,1738474238873,-482.78817286,0.00016438,2]
[351246360,1738474238882,-500.0,0.00016438,2]
[351246361,1738474238891,-500.0,0.00016438,2]
[351246362,1738474238901,-500.0,0.00016438,2]
[351246363,1738474238910,-500.0,0.00016438,2]
[351246364,1738474238920,-500.0,0.00016438,2]
[351246365,1738474238930,-636.36,0.00016438,2]
[351246366,1738474238939,-500.0,0.00016438,2]
[351246367,1738474238949,-500.0,0.00016438,2]
[351246368,1738474238959,-500.0,0.00016438,2]
[351246369,1738474238968,-500.0,0.00016438,2]
[351246370,1738474238978,-208.1466038,0.00016438,2]
[351246371,1738474238987,-296.02020905,0.00016438,2]
[351246372,1738474238997,-500.0,0.00016438,2]
[351246373,1738474239006,-500.0,0.00016438,2]
[351246374,1738474239016,-257.22817801,0.00016438,2]
[351246375,1738474239026,-500.0,0.00016438,2]
[351246376,1738474239035,-500.0,0.00016438,2]
[351246377,1738474239044,-500.0,0.00016438,2]
[351246378,1738474239054,-500.0,0.00016438,2]
[351246379,1738474239063,-500.0,0.00016438,2]
[351246380,1738474239073,-505.43875293,0.00016438,2]
[351246381,1738474239082,-500.0,0.00016438,2]
[351246382,1738474239092,-500.0,0.00016438,2]
[351246383,1738474239101,-500.0,0.00016438,2]
[351246384,1738474239111,-500.0,0.00016438,2]
[351246385,1738474239121,-157.98,0.00016438,2]
[351246386,1738474239130,-508.04898694,0.00016438,2]
[351246387,1738474239139,-500.0,0.00016438,2]
[351246388,1738474239148,-500.0,0.00016438,2]
[351246389,1738474239157,-500.0,0.00016438,2]
[351246390,1738474239167,-500.0,0.00016438,2]
[351246391,1738474239176,-500.0,0.00016438,2]
[351246392,1738474239186,-500.0,0.00016438,2]
[351246393,1738474239195,-500.0,0.00016438,2]
[351246394,1738474239204,-500.0,0.00016438,2]
[351246395,1738474239215,-500.0,0.00016438,2]
[351246396,1738474239223,-571.19,0.00016438,2]
[351246397,1738474239233,-500.0,0.00016438,2]
[351246398,1738474239243,-500.0,0.00016438,2]
[351246399,1738474239252,-500.0,0.00016438,2]
[351246400,1738474239262,-500.0,0.00016438,2]
[351246401,1738474239272,-500.0,0.00016438,2]
[351246402,1738474239282,-500.0,0.00016438,2]
[351246403,1738474239293,-500.0,0.00016438,2]
[351246404,1738474239305,-536.14,0.00016438,2]
[351246405,1738474239314,-500.0,0.00016438,2]
[351246406,1738474239324,-500.0,0.00016438,2]
[351246407,1738474239335,-500.0,0.00016438,2]
[351246408,1738474239345,-500.0,0.00016438,2]
[351246409,1738474239355,-500.0,0.00016438,2]
[351246410,1738474239365,-500.0,0.00016438,2]
[351246411,1738474239374,-500.0,0.00016438,2]
[351246412,1738474239384,-500.0,0.00016438,2]
[351246413,1738474239394,-500.0,0.00016438,2]
[351246414,1738474239403,-500.0,0.00016438,2]
[351246415,1738474239413,-500.0,0.00016438,2]
[351246416,1738474239422,-500.0,0.00016438,2]
[351246417,1738474239432,-500.0,0.00016438,2]
[351246418,1738474239442,-500.0,0.00016438,2]
[351246419,1738474239451,-500.0,0.00016438,2]
[351246420,1738474239460,-500.0,0.00016438,2]
[351246421,1738474239470,-500.0,0.00016438,2]
[351246422,1738474239480,-500.0,0.00016438,2]
[351246423,1738474239489,-500.0,0.00016438,2]
[351246424,1738474239499,-553.02,0.00016438,2]
[351246425,1738474239509,-500.0,0.00016438,2]
[351246426,1738474239519,-500.0,0.00016438,2]
[351246427,1738474239530,-500.0,0.00016574,2]
[351246428,1738474239540,-597.45110743,0.00016575,2]
[351246429,1738474239549,-500.0,0.00016575,2]
[351246430,1738474239558,-500.0,0.00016575,2]
[351246431,1738474239568,-571.19,0.00016575,2]
[351246432,1738474239578,-423.18,0.00016575,2]
[351246433,1738474239587,-500.0,0.00016575,2]
[351246434,1738474239597,-500.0,0.00016575,2]
[351246435,1738474239607,-500.0,0.00016712,2]
[351246436,1738474239616,-500.0,0.00016712,2]
[351246437,1738474239626,-571.19,0.00016712,2]
[351246438,1738474239636,-614.37762179,0.00016712,2]
[351246439,1738474239645,-500.0,0.00016712,2]
[351246440,1738474239655,-500.0,0.00016847,2]
[351246442,1738474239666,-500.0,0.00016848,2]
[351246444,1738474239675,-500.0,0.00016849,2]
[351246445,1738474239685,-500.0,0.00016849,2]
[351246446,1738474239693,-571.19,0.00016849,2]
[351246447,1738474239703,-500.0,0.00016849,2]
[351246448,1738474239712,-500.0,0.00016986,2]
[351246449,1738474239722,-500.0,0.00016986,2]
[351246450,1738474239732,-571.19,0.00016986,2]
[351246451,1738474239742,-500.0,0.00016986,2]
[351246452,1738474239752,-500.0,0.00017122,2]
[351246453,1738474239763,-500.0,0.00017123,2]
[351246454,1738474239773,-500.0,0.00017123,2]
[351246455,1738474239783,-571.19,0.00017123,2]
[351246456,1738474239793,-500.0,0.00017123,2]
[351246457,1738474239803,-500.0,0.0001726,2]
[351246458,1738474239813,-500.0,0.0001726,2]
[351246459,1738474239822,-571.19,0.0001726,2]
[351246460,1738474239832,-500.0,0.0001726,2]
[351246461,1738474239842,-500.0,0.00017396,2]
[351246462,1738474239852,-500.0,0.00017396,2]
[351246463,1738474239862,-500.0,0.00017397,2]
[351246464,1738474239872,-500.0,0.00017397,2]
[351246465,1738474239883,-571.19,0.00017397,2]
[351246466,1738474239893,-500.0,0.00017397,2]
[351246467,1738474239903,-500.0,0.00017534,2]
[351246468,1738474239912,-500.0,0.00017534,2]
[351246469,1738474239922,-571.19,0.00017534,2]
[351246471,1738474239932,-500.0,0.00017534,2]
[351246473,1738474239942,-253.32149295,0.000176,2]
[351246475,1738474239950,-2302.0,0.00017646,2]
[351246476,1738474239960,-396.0,0.00017646,2]
[351246477,1738474239969,-13255.3373504,0.00017655,2]
[351246479,1738474239977,-500.0,0.0001767,2]
[351246480,1738474239986,-500.0,0.00017671,2]
[351246481,1738474239995,-500.0,0.00017671,2]
[351246482,1738474240005,-571.19,0.00017671,2]
[351246483,1738474240015,-500.0,0.00017671,2]
[351246484,1738474240024,-291.75052518,0.00017808,2]
[351246485,1738474240034,-500.0,0.00017808,2]
[351246486,1738474240044,-571.19,0.00017808,2]
[351246488,1738474240053,-500.0,0.00017808,2]
[351246489,1738474240064,-500.0,0.00017945,2]
[351246490,1738474240073,-571.19,0.00017945,2]
[351246491,1738474240083,-500.0,0.00017945,2]
[351246492,1738474240093,-420.0,0.00017963,2]
[351246494,1738474240103,-503.38127608,0.00017973,2]
[351246495,1738474240112,-500.0,0.00017973,2]
[351246496,1738474240122,-500.0,0.00017996,2]
[351246498,1738474240131,-500.0,0.00017996,2]